bitfinex/quotes_ETHUSD_20250604
["timestamp","ask_amount","ask_price","bid_price","bid_amount"]
[1749024309860,3.878,2627.8,2627.7,18.0]
[1749024310095,4.34218,2627.8,2627.7,8.0]
[1749024312384,4.34218,2627.8,2627.7,10.906085]
[1749024312899,4.34218,2627.8,2627.7,8.0]
[1749024319208,4.34218,2627.8,2627.7,18.0]
[1749024319370,4.34218,2627.8,2627.7,16.8177]
[1749024319774,4.34218,2627.8,2627.7,15.362037]
[1749024320118,4.33818,2627.8,2627.7,15.362037]
[1749024321078,4.33818,2627.8,2627.7,13.959946]
[1749024321278,4.33818,2627.8,2627.7,13.711671]
[1749024321504,4.33818,2627.8,2627.7,10.5307]
[1749024323578,3.54118,2627.8,2627.7,10.5307]
[1749024326435,3.54118,2627.8,2627.7,8.0]
[1749024327004,3.54118,2627.8,2627.7,10.517759]
[1749024327706,3.54118,2627.8,2627.7,8.0]
[1749024330917,5.12178,2627.8,2627.7,8.0]
[1749024333828,4.33018,2627.8,2627.7,18.0]
[1749024334223,1.25618,2627.8,2627.7,18.0]
[1749024334424,3.866,2627.8,2627.7,18.0]
[1749024336425,3.074,2627.8,2627.7,18.0]
[1749024339850,0.792,2627.9,2627.8,18.0]
[1749024340186,3.864,2627.9,2627.8,18.0]
[1749024340335,3.864,2627.9,2627.7,10.0]
[1749024340539,3.864,2627.9,2627.6,0.4722]
[1749024340745,3.864,2627.9,2627.8,11.505101]
[1749024341248,4.2504,2627.9,2627.8,14.589656]
[1749024341450,3.864,2627.9,2627.8,14.589656]
[1749024342203,3.864,2627.9,2627.2,0.4722]
[1749024342346,3.864,2627.9,2627.5,10.0]
[1749024342552,3.864,2627.9,2627.7,6.642532]
[1749024342771,3.864,2627.9,2627.8,8.0]
[1749024342973,4.32601,2627.9,2627.8,8.0]
[1749024343749,4.87601,2627.9,2627.8,8.0]
[1749024343962,5.63211,2627.9,2627.8,8.0]
[1749024346589,10.30211,2627.9,2627.8,8.0]
[1749024351511,7.23011,2627.9,2627.8,8.0]
[1749024351684,10.30611,2627.9,2627.8,8.0]
[1749024358911,7.23011,2627.9,2627.8,8.0]
[1749024359110,10.30411,2627.9,2627.8,8.0]
[1749024360320,9.54801,2627.9,2627.8,8.0]
[1749024360820,5.462,2627.9,2627.8,18.0]
[1749024360993,4.67,2627.9,2627.8,18.0]
[1749024361193,5.46,2628.2,2628.0,10.0]
[1749024361399,5.46,2628.2,2628.1,18.0]
[1749024361605,8.536,2628.2,2628.1,18.0]
[1749024363705,8.535,2628.2,2628.1,18.0]
[1749024364545,8.535,2628.2,2628.1,11.14876]
[1749024364848,8.535,2628.2,2627.2,0.51593116]
[1749024364849,9.3885,2628.2,2627.7,10.0]
[1749024364999,8.535,2628.2,2628.0,8.0]
[1749024365205,8.535,2628.2,2627.8,8.0]
[1749024365617,8.535,2628.2,2627.6,0.4722]
[1749024365814,8.535,2628.2,2627.9,2.807379]
[1749024366019,9.47178,2628.2,2627.6,0.4722]
[1749024366306,9.47178,2628.2,2628.0,8.0]
[1749024366529,9.47178,2628.2,2627.8,8.0]
[1749024366729,9.47178,2628.2,2627.6,0.4722]
[1749024367048,9.47178,2628.2,2628.0,8.0]
[1749024367345,9.47178,2628.2,2627.8,8.0]
[1749024367507,9.47178,2628.2,2627.6,0.4722]
[1749024367701,9.47178,2628.2,2628.0,8.0]
[1749024367903,1.030458,2628.1,2627.6,0.4722]
[1749024368151,3.074,2628.0,2627.9,17.202017]
[1749024368349,3.074,2628.0,2627.9,8.0]
[1749024368554,3.074,2628.0,2627.9,17.202017]
[1749024371841,5.46,2628.2,2628.0,8.0]
[1749024372046,5.46,2628.2,2628.1,18.0]
[1749024372257,8.533,2628.2,2628.1,18.0]
[1749024372427,9.46958,2628.2,2628.1,18.0]
[1749024375851,9.46858,2628.2,2628.1,18.0]
[1749024376059,8.532,2628.2,2628.1,18.0]
[1749024378558,5.46,2628.2,2628.1,18.0]
[1749024378762,8.532,2628.2,2628.1,18.0]
[1749024379053,5.46,2628.2,2628.1,18.0]
[1749024379266,8.532,2628.2,2628.1,18.0]
[1749024380154,7.742,2628.2,2628.1,18.0]
[1749024383263,3.072,2628.2,2628.1,18.0]
[1749024385228,3.072,2628.2,2628.1,8.0]
[1749024386835,3.072,2628.2,2628.1,11.216788]
[1749024387971,3.072,2628.2,2628.1,8.0]
[1749024388275,3.4579,2628.2,2628.1,8.0]
[1749024389052,4.227,2628.2,2628.1,8.0]
[1749024389254,4.227,2628.2,2627.0,1.11014148]
[1749024389255,4.777,2628.2,2627.1,0.4722]
[1749024389456,0.8262,2627.9,2627.2,10.0]
[1749024389657,3.072,2627.8,2627.3,8.0]
[1749024389972,3.859,2627.8,2627.1,0.4722]
[1749024390143,3.859,2627.8,2627.3,8.0]
[1749024390344,3.859,2627.8,2627.7,8.0]
[1749024390547,3.859,2627.8,2627.7,14.859578]
[1749024391081,3.859,2627.8,2627.4,8.0]
[1749024391257,3.859,2627.8,2627.6,8.0]
[1749024391445,3.859,2627.8,2627.3,8.0]
[1749024391647,4.3028651,2627.8,2627.5,8.0]
[1749024391846,4.3028651,2627.8,2627.7,18.0]
[1749024392057,4.3028651,2627.8,2627.7,13.832509]
[1749024393691,4.3028651,2627.8,2627.7,10.413509]
[1749024397995,4.3028651,2627.8,2627.7,8.0]
[1749024399394,1.2308651,2627.8,2627.7,10.562652]
[1749024399566,3.859,2627.8,2627.7,10.562652]
[1749024400092,4.67,2628.1,2627.8,8.0]
[1749024400298,3.859,2628.0,2627.9,18.0]
[1749024400462,0.7675,2628.4,2628.0,18.0]
[1749024400661,3.86,2628.3,2627.9,0.4722]
[1749024400861,3.072,2628.2,2628.0,10.0]
[1749024401062,3.072,2628.2,2628.1,8.0]
[1749024401694,3.072,2628.2,2627.9,0.4722]
[1749024402111,3.072,2628.2,2628.1,8.0]
[1749024402411,3.072,2628.2,2627.9,0.4722]
[1749024402561,3.072,2628.2,2628.1,8.0]
[1749024402764,3.072,2628.2,2627.9,0.4722]
[1749024402968,3.072,2628.2,2628.1,18.0]
[1749024405824,0.788,2628.3,2627.9,0.4722]
[1749024405986,3.072,2628.2,2628.0,10.0]
[1749024406326,3.072,2628.2,2628.1,18.0]
[1749024406884,0.788,2628.3,2627.9,0.4722]
[1749024407082,3.072,2628.2,2628.1,8.0]
[1749024407378,3.072,2628.2,2628.1,18.0]
[1749024409222,3.072,2628.2,2628.0,10.0]
[1749024409385,3.072,2628.2,2628.1,18.0]
[1749024411595,0.788,2628.3,2628.1,18.0]
[1749024411798,3.072,2628.2,2628.1,8.0]
[1749024411997,3.072,2628.2,2628.1,18.0]
[1749024412181,0.788,2628.3,2628.1,18.0]
[1749024412387,4.67,2628.5,2628.4,18.0]
[1749024412587,3.859,2628.5,2628.4,18.0]
[1749024412893,0.787,2628.5,2628.4,18.0]
[1749024413098,3.859,2628.5,2628.4,18.0]
[1749024413921,0.787,2628.5,2628.4,18.0]
[1749024414129,3.859,2628.5,2628.4,18.0]
[1749024414809,0.787,2628.5,2628.4,18.0]
[1749024415025,3.859,2628.5,2628.4,18.0]
[1749024416750,0.787,2628.5,2628.4,18.0]
[1749024416908,3.859,2628.5,2628.4,18.0]
[1749024417808,0.787,2628.5,2628.4,18.0]
[1749024418142,3.859,2628.5,2628.4,18.0]
[1749024418508,3.859,2628.5,2628.4,18.4722]
[1749024420041,3.858,2628.5,2628.4,18.4722]
[1749024420568,0.02,2628.9,2628.6,0.4722]
[1749024420849,0.02,2628.9,2628.8,18.0]
[1749024421012,3.091,2628.9,2628.8,18.4722]
[1749024421744,0.02,2628.9,2628.8,18.4722]
[1749024421948,3.091,2628.9,2628.8,18.4722]
[1749024422110,3.091,2628.9,2628.8,18.0]
[1749024422311,0.02,2628.9,2628.8,12.363297]
[1749024422506,3.092,2628.9,2628.8,12.363297]
[1749024423152,0.02,2628.9,2628.8,12.363297]
[1749024423372,3.093,2628.9,2628.8,12.363297]
[1749024423866,0.02,2628.9,2628.8,12.363297]
[1749024424051,3.093,2628.9,2628.8,12.363297]
[1749024426073,0.02,2628.9,2628.8,12.835497]
[1749024426282,3.092,2628.9,2628.8,12.835497]
[1749024427671,0.02,2628.9,2628.8,12.835497]
[1749024430774,5.457,2629.5,2629.0,8.0]
[1749024430976,3.073,2629.4,2629.3,10.0]
[1749024431275,3.073,2629.4,2629.3,18.0]
[1749024431641,0.787,2629.5,2629.4,8.0]
[1749024431845,0.787,2629.5,2629.4,18.0]
[1749024432254,0.02,2629.9,2629.5,0.4722]
[1749024432464,0.02,2629.9,2629.7,8.0]
[1749024432746,0.02,2629.9,2629.8,18.0]
[1749024433376,3.098,2629.9,2629.8,18.0]
[1749024433878,0.02,2629.9,2629.8,18.4722]
[1749024435242,0.02,2629.9,2629.8,18.0]
[1749024437267,0.02,2629.9,2629.8,18.4722]
[1749024439211,0.00162242,2629.9,2629.8,18.4722]
[1749024439917,3.867,2630.3,2630.2,18.0]
[1749024440104,4.2537,2630.3,2630.2,18.0]
[1749024440299,3.867,2630.3,2630.2,18.0]
[1749024442077,3.867,2630.3,2630.2,10.732615]
[1749024442078,4.693,2630.3,2630.2,10.732615]
[1749024442315,0.826,2630.3,2630.2,10.732615]
[1749024442478,0.79,2630.4,2630.3,18.0]
[1749024442676,3.871,2630.4,2630.3,18.0]
[1749024443688,5.496,2630.6,2629.9,0.4722]
[1749024443689,6.286,2630.6,2630.5,18.0]
[1749024443890,9.367,2630.6,2630.5,18.0]
[1749024444123,6.286,2630.6,2630.5,18.0]
[1749024444327,8.541,2630.6,2630.5,18.0]
[1749024444537,5.46,2630.6,2630.5,18.0]
[1749024444679,8.541,2630.6,2630.5,18.0]
[1749024445777,5.46,2630.6,2630.5,18.0]
[1749024446020,8.54,2630.6,2630.5,18.0]
[1749024446678,5.46,2630.6,2630.5,18.0]
[1749024447280,0.79,2630.6,2630.5,18.0]
[1749024447714,3.87,2630.6,2630.5,18.4722]
[1749024448312,5.46,2631.2,2630.7,10.0]
[1749024448514,5.46,2631.2,2630.8,18.4722]
[1749024448719,0.79,2631.2,2630.8,18.4722]
[1749024448916,0.79,2631.2,2631.0,8.0]
[1749024449081,3.874,2631.2,2631.1,18.4722]
[1749024449283,0.7558,2631.8,2631.2,8.0]
[1749024449479,5.4028,2632.0,2631.4,8.0]
[1749024449679,0.79,2632.1,2631.8,8.0]
[1749024449908,0.7558,2632.5,2631.8,18.0]
[1749024450092,0.79,2632.7,2631.8,13.946919]
[1749024450093,3.111,2631.9,2631.8,13.946919]
[1749024450718,3.50414,2631.9,2631.8,13.946919]
[1749024450917,4.29414,2631.9,2631.2,0.4722]
[1749024451104,4.29414,2631.9,2631.4,8.0]
[1749024451305,4.29414,2631.9,2631.8,8.0]
[1749024451519,4.29414,2631.9,2631.2,0.4722]
[1749024451821,0.511454,2631.8,2631.7,10.0]
[1749024452020,0.81,2631.9,2631.8,8.0]
[1749024452228,3.903,2631.9,2631.4,8.0]
[1749024452426,3.903,2631.9,2631.6,8.0]
[1749024452583,3.903,2631.9,2631.2,0.4722]
[1749024452779,3.903,2631.9,2631.5,10.0]
[1749024452983,4.37534,2631.9,2631.6,8.0]
[1749024453438,4.37534,2631.9,2631.4,8.0]
[1749024453609,4.37534,2631.9,2631.8,8.0]
[1749024453806,3.902,2631.9,2631.8,10.0]
[1749024454007,3.902,2631.9,2631.3,10.0]
[1749024456920,3.091,2631.8,2631.7,10.0]
[1749024458122,3.091,2631.8,2631.7,18.0]
[1749024458335,0.02,2631.9,2631.8,18.0]
[1749024458494,3.112,2631.9,2631.8,18.0]
[1749024458700,0.02,2631.9,2631.8,18.0]
[1749024459036,3.112,2631.9,2631.8,18.0]
[1749024460642,3.111,2631.9,2631.8,18.0]
[1749024461135,0.02,2631.9,2631.8,18.0]
[1749024461339,3.111,2631.9,2631.8,18.0]
[1749024462342,3.11,2631.9,2631.8,18.0]
[1749024462759,0.02,2631.9,2631.8,18.0]
[1749024462970,3.11,2631.9,2631.8,18.0]
[1749024465218,3.11,2631.9,2631.8,16.300388]
[1749024466550,3.109,2631.9,2631.8,16.300388]
[1749024468569,4.263,2631.9,2631.1,10.0]
[1749024468765,4.263,2631.9,2631.3,10.0]
[1749024469066,4.263,2631.9,2631.0,0.4722]
[1749024469067,4.263,2631.9,2631.1,10.0]
[1749024469417,0.7874,2631.8,2631.1,10.0]
[1749024469639,3.09,2631.7,2631.2,8.0]
[1749024469855,0.7874,2631.6,2631.4,8.0]
[1749024470054,3.09,2631.5,2630.9,8.0]
[1749024470367,3.09,2631.5,2631.3,8.0]
[1749024470527,0.7874,2631.6,2631.5,8.0]
[1749024470727,0.7596,2631.8,2631.6,10.0]
[1749024471040,0.02,2631.9,2631.7,18.0]
[1749024471240,3.092,2631.8,2631.7,18.0]
[1749024472927,0.02,2631.9,2631.8,18.0]
[1749024473256,3.111,2631.9,2631.8,18.0]
[1749024474068,0.02,2631.9,2631.8,18.0]
[1749024474264,3.111,2631.9,2631.8,18.0]
[1749024474743,3.11,2631.9,2631.8,18.0]
[1749024476356,3.58419,2631.9,2631.8,10.437011]
[1749024476562,4.34139,2631.9,2631.8,10.437011]
[1749024476764,9.01139,2631.9,2631.8,10.437011]
[1749024477073,9.01139,2631.9,2631.8,10.295618]
[1749024477244,9.01139,2631.9,2630.6,0.58916187]
[1749024477245,9.01139,2631.9,2631.0,0.4722]
[1749024477449,9.01139,2631.9,2631.1,10.0]
[1749024477644,9.01139,2631.9,2631.4,8.0]
[1749024477978,9.01139,2631.9,2631.0,0.4722]
[1749024478157,9.01139,2631.9,2631.4,8.0]
[1749024478357,9.01139,2631.9,2631.6,8.0]
[1749024478559,9.01139,2631.9,2631.8,14.343761]
[1749024478744,9.01139,2631.9,2631.0,0.4722]
[1749024479073,9.01139,2631.9,2631.5,10.0]
[1749024479278,9.01139,2631.9,2631.0,0.4722]
[1749024479443,9.01139,2631.9,2631.3,10.0]
[1749024479650,0.981039,2631.8,2631.5,10.0]
[1749024479857,3.092,2631.7,2631.6,14.815881]
[1749024480148,3.8805,2631.7,2631.3,10.0]
[1749024480359,3.8805,2631.7,2630.8,0.4722]
[1749024480547,4.67,2631.6,2631.2,8.0]
[1749024480762,3.8805,2631.5,2631.4,8.0]
[1749024480964,3.8805,2631.5,2629.7,1.90589885]
[1749024480965,0.7885,2631.3,2630.2,10.4722]
[1749024481262,0.7885,2631.0,2629.8,0.4722]
[1749024481437,0.7885,2630.8,2629.9,10.0]
[1749024481641,3.096,2630.7,2629.9,10.0]
[1749024481874,7.766,2630.7,2629.9,10.0]
[1749024482037,3.096,2630.6,2630.2,8.0]
[1749024482238,0.799,2630.8,2630.4,8.0]
[1749024482442,3.096,2630.7,2630.6,18.0]
[1749024483676,3.098,2630.7,2630.6,18.0]
[1749024485876,3.098,2630.7,2630.6,11.110369]
[1749024486180,1.343,2630.6,2630.0,10.0]
[1749024486476,3.1,2630.5,2629.9,8.0]
[1749024486677,1.343,2630.6,2630.1,8.0]
[1749024486678,0.799,2630.4,2630.1,8.0]
[1749024486850,0.799,2630.4,2630.2,0.4722]
[1749024486851,3.1,2630.4,2630.2,0.4722]
[1749024487179,3.1,2630.4,2630.3,10.0]
[1749024487538,0.7918,2631.0,2630.3,10.0]
[1749024487742,3.104,2630.9,2630.3,10.0]
[1749024488042,1.5908,2631.0,2630.3,10.0]
[1749024488244,3.104,2630.8,2630.3,10.0]
[1749024488881,1.5908,2631.0,2630.3,10.0]
[1749024489054,3.904,2631.0,2630.7,10.0]
[1749024489258,3.904,2631.0,2630.9,18.0]
[1749024489448,0.799,2631.0,2630.9,18.0]
[1749024491878,4.645,2631.3,2631.1,10.0]
[1749024492042,7.75,2631.3,2631.2,8.0]
[1749024492239,3.105,2631.3,2631.2,18.0]
[1749024493161,0.799,2631.4,2631.3,18.0]
[1749024493357,3.903,2631.4,2631.3,18.0]
[1749024493743,0.799,2631.4,2631.3,18.0]
[1749024493948,3.903,2631.4,2631.3,18.0]
[1749024494958,0.8188,2631.7,2631.5,10.0]
[1749024495184,3.911,2631.6,2631.5,18.0]
[1749024496084,0.807,2631.6,2631.5,18.0]
[1749024500693,0.02,2631.9,2631.6,8.0]
[1749024500874,0.02,2631.9,2631.8,18.0]
[1749024502695,0.0069,2631.9,2631.8,18.0]
[1749024509201,0.0069,2631.9,2631.8,18.4722]
[1749024514883,0.0069,2631.9,2631.8,18.0]
[1749024529913,0.8315,2631.9,2631.8,18.0]
[1749024530115,0.0069,2631.9,2631.8,18.0]
[1749024530326,3.0969,2631.9,2631.8,18.0]
[1749024530831,3.8988,2631.9,2631.8,18.0]
[1749024531019,4.28868,2631.9,2631.2,10.0]
[1749024531188,0.8019,2631.8,2631.2,10.0]
[1749024531394,0.8019,2631.8,2631.3,8.0]
[1749024531589,0.8019,2631.8,2631.5,8.0]
[1749024531791,0.0069,2631.9,2631.7,18.0]
[1749024532121,3.09,2631.8,2631.4,10.0]
[1749024532345,3.09,2631.8,2631.7,8.0]
[1749024532547,3.09,2631.8,2631.7,18.0]
[1749024533855,0.0069,2631.9,2631.7,18.0]
[1749024534042,3.0989,2631.9,2631.8,18.0]
[1749024537876,0.0069,2631.9,2631.8,18.0]
[1749024543681,0.8,2632.3,2632.0,10.0]
[1749024543868,3.889,2632.3,2632.2,10.0]
[1749024544174,3.889,2632.3,2632.2,18.0]
[1749024548473,3.887,2632.3,2632.2,18.0]
[1749024550685,0.7956,2632.4,2632.3,18.0]
[1749024550845,3.8816,2632.4,2632.3,18.0]
[1749024551050,0.7956,2632.4,2632.3,18.0]
[1749024551285,0.8,2632.5,2632.4,18.0]
[1749024551489,3.886,2632.5,2632.4,18.0]
[1749024553291,0.7636,2632.6,2632.5,8.0]
[1749024553494,0.8,2632.7,2632.6,18.0]
[1749024553851,3.886,2632.7,2632.6,18.0]
[1749024554889,0.02,2632.9,2632.8,10.0]
[1749024555054,3.106,2632.9,2632.8,18.0]
[1749024556395,4.40677,2632.9,2632.8,12.499429]
[1749024557282,3.94,2632.9,2632.8,12.499429]
[1749024558809,0.853,2632.9,2632.8,12.499429]
[1749024558951,3.107,2632.9,2632.8,12.499429]
[1749024559383,0.071,2634.6,2633.0,10.4722]
[1749024559589,0.071,2634.6,2633.3,8.0]
[1749024559770,0.071,2634.6,2633.8,0.4722]
[1749024559973,0.02,2634.9,2634.0,8.0]
[1749024560172,0.02,2634.9,2634.4,8.0]
[1749024560363,0.02,2634.9,2634.7,10.0]
[1749024560562,0.02,2634.9,2634.4,8.0]
[1749024560563,0.7854,2634.9,2634.8,18.0]
[1749024560784,3.8964,2634.9,2634.8,18.0]
[1749024561001,0.7854,2634.9,2634.8,18.0]
[1749024561300,0.796,2635.6,2634.8,18.4722]
[1749024561500,0.7593,2635.3,2635.0,8.0]
[1749024561805,3.117,2635.2,2634.6,8.0]
[1749024562098,3.117,2635.2,2634.9,10.0]
[1749024562411,3.117,2635.2,2635.1,8.0]
[1749024562412,3.913,2635.2,2635.1,8.0]
[1749024562616,3.913,2635.2,2635.1,10.112645]
[1749024562773,3.913,2635.2,2635.1,8.0]
[1749024562975,4.38023,2635.2,2635.1,8.0]
[1749024563211,4.38023,2635.2,2635.1,11.986627]
[1749024563430,0.46723,2635.2,2635.1,8.0]
[1749024563662,4.461,2635.2,2635.1,8.0]
[1749024565017,0.796,2635.2,2635.1,14.086584]
[1749024565172,3.911,2635.2,2635.1,14.086584]
[1749024566689,3.911,2635.2,2635.1,11.892614]
[1749024567601,3.911,2635.2,2635.1,10.420418]
[1749024567808,4.37803,2635.2,2635.1,11.268901]
[1749024568118,0.796,2635.7,2635.4,8.0]
[1749024568320,0.796,2635.7,2635.5,13.81189]
[1749024568520,3.119,2635.6,2635.5,8.0]
[1749024569003,4.4969,2635.6,2635.5,8.0]
[1749024569176,5.02619,2635.6,2635.5,8.0]
[1749024571783,5.02619,2635.6,2634.4,0.50372353]
[1749024571784,0.55,2635.5,2634.4,0.50372353]
[1749024571984,4.19829,2635.6,2634.1,10.0]
[1749024571985,0.55,2635.1,2634.1,10.0]
[1749024572189,3.121,2635.0,2634.1,10.0]
[1749024572411,0.796,2634.9,2634.2,8.0]
[1749024572590,3.121,2634.8,2634.1,10.0]
[1749024572790,3.121,2634.8,2634.4,8.0]
[1749024573087,0.7801,2634.7,2633.4,10.44564019]
[1749024573306,0.7801,2634.7,2633.8,8.0]
[1749024573596,3.125,2634.8,2634.0,10.0]
[1749024573815,3.124,2634.8,2634.3,8.0]
[1749024574017,0.796,2634.9,2634.5,8.0]
[1749024574247,0.796,2634.9,2634.7,18.0]
[1749024574550,3.92,2634.9,2634.8,18.0]
[1749024575057,3.124,2635.3,2635.1,8.0]
[1749024575351,3.516,2635.3,2635.2,12.203341]
[1749024577326,3.516,2635.3,2635.2,8.0]
[1749024577528,3.516,2635.3,2635.2,12.909874]
[1749024578029,3.516,2635.3,2635.2,11.61954]
[1749024578328,3.516,2635.3,2635.2,8.0]
[1749024578522,3.516,2635.3,2635.2,10.585806]
[1749024578523,3.514,2635.3,2635.2,10.585806]
[1749024578752,3.514,2635.3,2635.2,8.0]
[1749024579056,3.514,2635.3,2635.2,10.168577]
[1749024579516,0.392,2635.3,2635.2,10.168577]
[1749024579853,3.122,2635.3,2635.2,10.168577]
[1749024581867,0.796,2635.4,2635.3,11.819492]
[1749024582015,3.916,2635.4,2635.3,11.819492]
[1749024582215,0.796,2635.4,2635.3,11.819492]
[1749024582498,3.916,2635.4,2635.3,11.819492]
[1749024582835,3.915,2635.4,2635.3,11.819492]
[1749024584242,0.796,2635.4,2635.3,11.819492]
[1749024584450,3.914,2635.4,2635.3,11.819492]
[1749024585350,4.3054,2635.4,2634.9,8.0]
[1749024585661,3.117,2635.3,2635.1,8.0]
[1749024585865,3.117,2635.3,2634.9,8.0]
[1749024586161,3.117,2635.3,2635.2,18.0]
[1749024586463,3.117,2635.3,2635.2,8.0]
[1749024587137,3.117,2635.3,2635.2,14.968518]
[1749024587349,4.3181,2635.3,2634.4,0.91784019]
[1749024587548,4.3181,2635.3,2634.6,8.0]
[1749024587730,4.3181,2635.3,2634.4,0.4722]
[1749024587927,4.3181,2635.3,2634.5,10.0]
[1749024588149,0.51141,2635.2,2634.8,8.0]
[1749024588331,3.118,2635.1,2634.4,0.4722]
[1749024588540,3.118,2635.1,2634.8,8.0]
[1749024588763,3.118,2635.1,2634.6,8.0]
[1749024588964,3.11608936,2635.1,2634.8,8.0]
[1749024589196,3.11608936,2635.1,2635.0,8.0]
[1749024589357,0.8098,2635.3,2634.4,0.07749565]
[1749024589551,3.117,2635.1,2634.5,10.0]
[1749024589770,3.119,2635.1,2634.5,10.0]
[1749024590359,0.8098,2635.3,2634.5,10.0]
[1749024590554,7.77,2636.3,2634.5,10.99567722]
[1749024590555,0.7866,2635.6,2634.5,10.99567722]
[1749024590889,3.118,2635.5,2634.7,10.0]
[1749024591263,1.6026,2635.6,2634.7,10.0]
[1749024591464,3.118,2635.5,2634.9,8.0]
[1749024591670,3.118,2635.4,2635.3,8.0]
[1749024591877,0.816,2635.6,2635.4,10.0]
[1749024592187,3.118,2635.5,2635.4,18.0]
[1749024595298,1.6158,2636.0,2635.6,7.27096]
[1749024595485,3.121,2635.8,2635.7,10.0]
[1749024595797,3.121,2635.8,2635.6,10.0]
[1749024597206,0.7998,2636.0,2635.6,10.0]
[1749024597515,3.12,2635.8,2635.6,10.0]
[1749024600297,0.816,2636.0,2635.8,10.0]
[1749024600511,3.137,2635.9,2635.8,18.0]
[1749024601904,0.02,2635.9,2635.8,18.0]
[1749024602097,3.136,2635.9,2635.8,18.0]
[1749024602299,0.02,2635.9,2635.8,18.0]
[1749024602688,3.136,2635.9,2635.8,18.0]
[1749024603005,0.02,2635.9,2635.8,18.0]
[1749024603374,0.02,2635.9,2635.8,18.0775]
[1749024603686,0.02,2635.9,2635.8,14.208193]
[1749024605119,1.0914,2635.9,2635.8,8.0]
[1749024605321,1.0914,2635.9,2635.8,10.257093]
[1749024605520,1.0914,2635.9,2635.8,8.0]
[1749024606323,1.0914,2635.9,2635.2,10.0]
[1749024606512,1.0914,2635.9,2634.7,0.56225695]
[1749024606513,0.7876,2635.7,2634.3,0.0775]
[1749024606716,0.7876,2635.4,2634.4,10.0]
[1749024606905,3.934,2635.3,2634.4,10.0]
[1749024607226,3.934,2635.3,2634.7,8.0]
[1749024607388,3.934,2635.3,2634.4,10.0]
[1749024607589,0.47216,2635.2,2634.5,8.0]
[1749024607824,0.47216,2635.2,2634.7,8.0]
[1749024608025,0.47216,2635.2,2634.4,10.0]
[1749024608328,0.47216,2635.2,2634.5,8.0]
[1749024608487,0.7568,2635.1,2633.9,1.00789714]
[1749024608693,3.12,2635.0,2634.1,10.0]
[1749024608894,0.38768,2634.9,2634.1,10.0]
[1749024609130,0.38768,2634.9,2634.6,8.0]
[1749024609131,3.12,2634.8,2634.6,8.0]
[1749024609401,3.12,2634.8,2634.7,18.0]
[1749024610603,3.12,2634.8,2634.7,8.0]
[1749024611866,3.8992,2634.8,2633.9,0.52314019]
[1749024612075,0.47152,2634.7,2634.0,10.0]
[1749024612210,8.5692,2634.8,2634.3,8.0]
[1749024612420,8.5692,2634.8,2634.0,10.0]
[1749024612725,5.4492,2634.8,2634.3,8.0]
[1749024612926,3.937,2634.7,2634.5,8.0]
[1749024613161,4.67,2634.8,2634.7,10.0]
[1749024613312,4.67,2634.8,2634.7,18.0]
[1749024613517,0.816,2635.1,2634.9,10.0]
[1749024613861,3.939,2635.1,2634.9,10.0]
[1749024614772,0.816,2635.1,2635.0,18.0]
[1749024614925,3.939,2635.1,2635.0,18.0]
[1749024615266,0.816,2635.1,2635.0,18.0]
[1749024615475,3.938,2635.1,2635.0,18.0]
[1749024615827,3.938,2635.1,2635.0,14.573267]
[1749024616258,3.938,2635.1,2635.0,12.598563]
[1749024616627,3.938,2635.1,2634.6,8.0]
[1749024616830,4.41031,2635.1,2634.8,8.0]
[1749024617056,3.938,2635.1,2635.0,18.0]
[1749024617369,3.938,2635.1,2635.0,13.282985]
[1749024617673,3.938,2635.1,2634.6,8.0]
[1749024617870,3.938,2635.1,2634.8,8.0]
[1749024618072,3.938,2635.1,2634.3,9.31247232]
[1749024618584,3.938,2635.1,2634.3,10.0]
[1749024618786,0.816,2635.1,2634.3,10.0]
[1749024618988,3.122,2635.0,2634.4,10.0]
[1749024619487,0.816,2635.1,2634.4,0.82578448]
[1749024619691,3.122,2635.0,2634.4,0.82578448]
[1749024620479,3.122,2635.0,2634.4,8.82578448]
[1749024620694,3.122,2635.0,2634.5,0.82578448]